{"text_format":"1","workbook":"xlsx","n_sheets":2,"sheets":["Sheet2","Sheet3"],"not_rendered":{"charts":0,"images":1,"macros":0,"external_links":0,"defined_names":1,"comments":0,"pivot_tables":0},"unopened":[],"bounds":{"document_bytes":16777216,"sheet_cells":100000,"rows_first":2000,"rows_last":500,"rows_between":2000,"halvings":0,"cell_chars":16384,"cell_head_chars":4096},"cells_cut":0,"cells_raw":0,"read":"whole","date_system":"1900"}

{"sheet":"Sheet2","index":0,"n_rows":108,"n_cols":18,"rows_kept":108,"cut":false,"hidden":false,"merged":[[7,4,7,5],[7,6,7,7],[7,16,7,17],[7,14,7,15],[7,12,7,13],[7,10,7,11],[7,8,7,9]]}
[]
[]
[]
[]
[]
[]
[]
[null,null,null,null,"EVENT 1",null,"EVENT 2",null,"EVENT 3",null,"EVENT 4",null,"Open",null,"National",null,"TOTAL"]
[null,"Pos",null,null,"pts","f/d","pts","f/d","pts","f/d","pts","f/d","pts","f/d","pts","f/d","pts","f/d"]
[null,1,"Richy","McDonald",154,10,110,8,null,null,null,null,null,null,null,null,{"$f":"SUM(E10+G10+I10+K10+M10+O10)","v":264},{"$f":"SUM(F10+H10+J10+L10+N10+P10)","v":18}]
[null,2,"Lee","McAllister",110,7,78,5,null,null,null,null,null,null,null,null,{"$f":"SUM(E11+G11+I11+K11+M11+O11)","v":188},{"$f":"SUM(F11+H11+J11+L11+N11+P11)","v":12}]
[null,3,"Mike","Watson",78,1,40,-1,null,null,null,null,null,null,null,null,{"$f":"SUM(E12+G12+I12+K12+M12+O12)","v":118},{"$f":"SUM(F12+H12+J12+L12+N12+P12)","v":0}]
[null,4,"Darren","Ellis",78,0,40,-1,null,null,null,null,null,null,null,null,{"$f":"SUM(E13+G13+I13+K13+M13+O13)","v":118},{"$f":"SUM(F13+H13+J13+L13+N13+P13)","v":-1}]
[null,5,"Scott","Dunbar",null,null,110,5,null,null,null,null,null,null,null,null,{"$f":"SUM(E14+G14+I14+K14+M14+O14)","v":110},{"$f":"SUM(F14+H14+J14+L14+N14+P14)","v":5}]
[null,6,"Alex ","Coutts",56,0,40,-3,null,null,null,null,null,null,null,null,{"$f":"SUM(E15+G15+I15+K15+M15+O15)","v":96},{"$f":"SUM(F15+H15+J15+L15+N15+P15)","v":-3}]
[null,7,"Danny","Maxwell",40,-2,56,-2,null,null,null,null,null,null,null,null,{"$f":"SUM(E16+G16+I16+K16+M16+O16)","v":96},{"$f":"SUM(F16+H16+J16+L16+N16+P16)","v":-4}]
[null,8,"Martin","Cook",40,-3,56,-1,null,null,null,null,null,null,null,null,{"$f":"SUM(E17+G17+I17+K17+M17+O17)","v":96},{"$f":"SUM(F17+H17+J17+L17+N17+P17)","v":-4}]
[null,9,"Paul","Jamieson",27,null,56,-1,null,null,null,null,null,null,null,null,{"$f":"SUM(E18+G18+I18+K18+M18+O18)","v":83},{"$f":"SUM(F18+H18+J18+L18+N18+P18)","v":-1}]
[null,10,"Robert","Barbour",40,-1,40,-1,null,null,null,null,null,null,null,null,{"$f":"SUM(E19+G19+I19+K19+M19+O19)","v":80},{"$f":"SUM(F19+H19+J19+L19+N19+P19)","v":-2}]
[null,11,"Dougie","Melrose",40,-1,40,-2,null,null,null,null,null,null,null,null,{"$f":"SUM(E20+G20+I20+K20+M20+O20)","v":80},{"$f":"SUM(F20+H20+J20+L20+N20+P20)","v":-3}]
[null,12,"Hugh","Adams",40,-2,40,-2,null,null,null,null,null,null,null,null,{"$f":"SUM(E21+G21+I21+K21+M21+O21)","v":80},{"$f":"SUM(F21+H21+J21+L21+N21+P21)","v":-4}]
[null,13,"Barry","Campbell",40,-3,40,-2,null,null,null,null,null,null,null,null,{"$f":"SUM(E22+G22+I22+K22+M22+O22)","v":80},{"$f":"SUM(F22+H22+J22+L22+N22+P22)","v":-5}]
[null,14,"Paul","Shanks",null,null,78,1,null,null,null,null,null,null,null,null,{"$f":"SUM(E23+G23+I23+K23+M23+O23)","v":78},{"$f":"SUM(F23+H23+J23+L23+N23+P23)","v":1}]
[null,15,"Michael","Philbin",56,1,null,null,null,null,null,null,null,null,null,null,{"$f":"SUM(E24+G24+I24+K24+M24+O24)","v":56},{"$f":"SUM(F24+H24+J24+L24+N24+P24)","v":1}]
[null,16,"George","Cunningham",56,-1,null,null,null,null,null,null,null,null,null,null,{"$f":"SUM(E25+G25+I25+K25+M25+O25)","v":56},{"$f":"SUM(F25+H25+J25+L25+N25+P25)","v":-1}]
[null,17,"Jim","Rushforth",null,null,56,-1,null,null,null,null,null,null,null,null,{"$f":"SUM(E26+G26+I26+K26+M26+O26)","v":56},{"$f":"SUM(F26+H26+J26+L26+N26+P26)","v":-1}]
[null,18,"Robert","Simpson",56,-2,null,null,null,null,null,null,null,null,null,null,{"$f":"SUM(E27+G27+I27+K27+M27+O27)","v":56},{"$f":"SUM(F27+H27+J27+L27+N27+P27)","v":-2}]
[null,19,"Pat","Killen",40,-1,15,null,null,null,null,null,null,null,null,null,{"$f":"SUM(E28+G28+I28+K28+M28+O28)","v":55},{"$f":"SUM(F28+H28+J28+L28+N28+P28)","v":-1}]
[null,20,"Jim","Butters",25,null,22,null,null,null,null,null,null,null,null,null,{"$f":"SUM(E29+G29+I29+K29+M29+O29)","v":47},{"$f":"SUM(F29+H29+J29+L29+N29+P29)","v":0}]
[null,21,"Matt","Hodgins",null,null,40,-2,null,null,null,null,null,null,null,null,{"$f":"SUM(E30+G30+I30+K30+M30+O30)","v":40},{"$f":"SUM(F30+H30+J30+L30+N30+P30)","v":-2}]
[null,22,"Ian","Graham",40,-3,null,null,null,null,null,null,null,null,null,null,{"$f":"SUM(E31+G31+I31+K31+M31+O31)","v":40},{"$f":"SUM(F31+H31+J31+L31+N31+P31)","v":-3}]
[null,23,"Colin","McAlpine",25,null,15,null,null,null,null,null,null,null,null,null,{"$f":"SUM(E32+G32+I32+K32+M32+O32)","v":40},{"$f":"SUM(F32+H32+J32+L32+N32+P32)","v":0}]
[null,24,"Ian","Gilles",15,null,15,null,null,null,null,null,null,null,null,null,{"$f":"SUM(E33+G33+I33+K33+M33+O33)","v":30},{"$f":"SUM(F33+H33+J33+L33+N33+P33)","v":0}]
[null,25,"Tam","Young",22,null,null,null,null,null,null,null,null,null,null,null,{"$f":"SUM(E34+G34+I34+K34+M34+O34)","v":22},{"$f":"SUM(F34+H34+J34+L34+N34+P34)","v":0}]
[null,26,"Stevie","Dick",22,null,null,null,null,null,null,null,null,null,null,null,{"$f":"SUM(E35+G35+I35+K35+M35+O35)","v":22},{"$f":"SUM(F35+H35+J35+L35+N35+P35)","v":0}]
[null,27,"Garry","Palmer",20,null,null,null,null,null,null,null,null,null,null,null,{"$f":"SUM(E36+G36+I36+K36+M36+O36)","v":20},{"$f":"SUM(F36+H36+J36+L36+N36+P36)","v":0}]
[null,28,"David","Clark",null,null,20,null,null,null,null,null,null,null,null,null,{"$f":"SUM(E37+G37+I37+K37+M37+O37)","v":20},{"$f":"SUM(F37+H37+J37+L37+N37+P37)","v":0}]
[null,29,"Angus","Stewart",null,null,20,null,null,null,null,null,null,null,null,null,{"$f":"SUM(E38+G38+I38+K38+M38+O38)","v":20},{"$f":"SUM(F38+H38+J38+L38+N38+P38)","v":0}]
[null,30,"George","Smith",15,null,null,null,null,null,null,null,null,null,null,null,{"$f":"SUM(E39+G39+I39+K39+M39+O39)","v":15},{"$f":"SUM(F39+H39+J39+L39+N39+P39)","v":0}]
[null,31,"Colin","Johnston",15,null,null,null,null,null,null,null,null,null,null,null,{"$f":"SUM(E40+G40+I40+K40+M40+O40)","v":15},{"$f":"SUM(F40+H40+J40+L40+N40+P40)","v":0}]
[null,32,"Lance","Little",15,null,null,null,null,null,null,null,null,null,null,null,{"$f":"SUM(E41+G41+I41+K41+M41+O41)","v":15},{"$f":"SUM(F41+H41+J41+L41+N41+P41)","v":0}]
[null,33,"Gordon","Adamson",null,null,15,null,null,null,null,null,null,null,null,null,{"$f":"SUM(E42+G42+I42+K42+M42+O42)","v":15},{"$f":"SUM(F42+H42+J42+L42+N42+P42)","v":0}]
[null,34,"Craig","MacGillivray",null,null,null,null,null,null,null,null,null,null,null,null,{"$f":"SUM(E43+G43+I43+K43+M43+O43)","v":0},{"$f":"SUM(F43+H43+J43+L43+N43+P43)","v":0}]
[null,35,null,null,null,null,null,null,null,null,null,null,null,null,null,null,{"$f":"SUM(E44+G44+I44+K44+M44+O44)","v":0},0]
[null,36,null,null,null,null,null,null,null,null,null,null,null,null,null,null,0,0]
[null,37,null,null,null,null,null,null,null,null,null,null,null,null,null,null,0,0]
[null,38,null,null,null,null,null,null,null,null,null,null,null,null,null,null,0,0]
[null,39,null,null,null,null,null,null,null,null,null,null,null,null,null,null,0,0]
[null,40,null,null,null,null,null,null,null,null,null,null,null,null,null,null,0,0]
[null,41,null,null,null,null,null,null,null,null,null,null,null,null,null,null,0,0]
[null,42,null,null,null,null,null,null,null,null,null,null,null,null,null,null,0,0]
[null,43,null,null,null,null,null,null,null,null,null,null,null,null,null,null,0,0]
[null,44,null,null,null,null,null,null,null,null,null,null,null,null,null,null,0,0]
[null,45,null,null,null,null,null,null,null,null,null,null,null,null,null,null,0,0]
[null,46,null,null,null,null,null,null,null,null,null,null,null,null,null,null,0,0]
[null,47,null,null,null,null,null,null,null,null,null,null,null,null,null,null,0,0]
[null,48,null,null,null,null,null,null,null,null,null,null,null,null,null,null,0,0]
[null,49,null,null,null,null,null,null,null,null,null,null,null,null,null,null,0,0]
[null,50,null,null,null,null,null,null,null,null,null,null,null,null,null,null,0,0]
[null,51,null,null,null,null,null,null,null,null,null,null,null,null,null,null,0,0]
[null,52,null,null,null,null,null,null,null,null,null,null,null,null,null,null,0,0]
[null,53,null,null,null,null,null,null,null,null,null,null,null,null,null,null,0,0]
[null,54,null,null,null,null,null,null,null,null,null,null,null,null,null,null,0,0]
[null,55,null,null,null,null,null,null,null,null,null,null,null,null,null,null,0,0]
[null,56,null,null,null,null,null,null,null,null,null,null,null,null,null,null,0,0]
[null,57,null,null,null,null,null,null,null,null,null,null,null,null,null,null,0,0]
[null,58,null,null,null,null,null,null,null,null,null,null,null,null,null,null,0,0]
[null,59,null,null,null,null,null,null,null,null,null,null,null,null,null,null,0,0]
[null,60,null,null,null,null,null,null,null,null,null,null,null,null,null,null,0,0]
[null,61,null,null,null,null,null,null,null,null,null,null,null,null,null,null,0,0]
[null,62,null,null,null,null,null,null,null,null,null,null,null,null,null,null,0,0]
[null,63,null,null,null,null,null,null,null,null,null,null,null,null,null,null,0,0]
[null,64,null,null,null,null,null,null,null,null,null,null,null,null,null,null,0,0]
[null,65,null,null,null,null,null,null,null,null,null,null,null,null,null,null,{"$f":"SUM(E74+G74+I74+K74+M74+O74)","v":0},0]
[null,66,null,null,null,null,null,null,null,null,null,null,null,null,null,null,0,0]
[null,67,null,null,null,null,null,null,null,null,null,null,null,null,null,null,0,0]
[null,68,null,null,null,null,null,null,null,null,null,null,null,null,null,null,0,0]
[null,69,null,null,null,null,null,null,null,null,null,null,null,null,null,null,0,0]
[null,70,null,null,null,null,null,null,null,null,null,null,null,null,null,null,0,0]
[null,71,null,null,null,null,null,null,null,null,null,null,null,null,null,null,0,0]
[null,72,null,null,null,null,null,null,null,null,null,null,null,null,null,null,0,0]
[null,73,null,null,null,null,null,null,null,null,null,null,null,null,null,null,0,0]
[null,74,null,null,null,null,null,null,null,null,null,null,null,null,null,null,0,0]
[null,75,null,null,null,null,null,null,null,null,null,null,null,null,null,null,0,0]
[null,76,null,null,null,null,null,null,null,null,null,null,null,null,null,null,0,0]
[null,77,null,null,null,null,null,null,null,null,null,null,null,null,null,null,0,0]
[null,78,null,null,null,null,null,null,null,null,null,null,null,null,null,null,0,0]
[null,79,null,null,null,null,null,null,null,null,null,null,null,null,null,null,0,0]
[null,80,null,null,null,null,null,null,null,null,null,null,null,null,null,null,0,0]
[null,81,null,null,null,null,null,null,null,null,null,null,null,null,null,null,0,0]
[null,82,null,null,null,null,null,null,null,null,null,null,null,null,null,null,0,0]
[null,83,null,null,null,null,null,null,null,null,null,null,null,null,null,null,0,0]
[null,84,null,null,null,null,null,null,null,null,null,null,null,null,null,null,0,0]
[null,85,null,null,null,null,null,null,null,null,null,null,null,null,null,null,0,0]
[null,86,null,null,null,null,null,null,null,null,null,null,null,null,null,null,0,0]
[null,87]
[null,88]
[null,89]
[null,90]
[null,91]
[null,92]
[null,93]
[null,94]
[null,95]
[null,96]
[null,97]
[null,98]
[null,99]

{"sheet":"Sheet3","index":1,"n_rows":0,"n_cols":0,"rows_kept":0,"cut":false,"hidden":false,"merged":[]}